Workbook

Sheet Introduction

Sheet Assumptions
A1: Assumptions
B3: Percentage of Revenue | E3: Other Assumptions | H3: Uses and Sources | I3: $ | J3: $/SF
B4: Loss to Lease | C4: 0.02 | E4: Rent Growth | F4: 0.03 | H4: Sources:
B5: Vacancy | C5: 0.08 | E5: Expense Growth | F5: 0.03 | H5: Loan | I5: =I10*0.7 -> 2275000 | J5: =I5/'Unit Mix'!$D$17 -> 161.9217082
B6: Collection Loss | C6: 0.01 | E6: Going-in Cap Rate | F6: ='Annual Cash Flow'!D37/I10 -> 0.07922870646 | H6: Equity | I6: =I7-I5 -> 1075500 | J6: =I6/'Unit Mix'!$D$17 -> 76.5480427
B7: Concessions | C7: 0.01 | E7: Exit Cap Rate | F7: 0.07 | H7: Total Sources | I7: =I16 -> 3350500 | J7: =I7/'Unit Mix'!$D$17 -> 238.4697509
E8: Holding Period (Yr) | F8: 10
E9: Management Fee (% of EGR) | F9: 0.03 | H9: Uses:
B10: Expense Name | C10: Annual PSF | E10: Disposition Costs | F10: 0.02 | H10: Purchase Price | I10: 3250000 | J10: =I10/'Unit Mix'!$D$17 -> 231.316726
B11: Taxes | C11: 1 | H11: Closing Cost | I11: 97500 | J11: =I11/'Unit Mix'!$D$17 -> 6.939501779
B12: Insurance | C12: 0.35 | H12: Legal | I12: 3000 | J12: =I12/'Unit Mix'!$D$17 -> 0.2135231317
B13: Gas | C13: 0.35 | E13: Debt Assumptions | H13: Working Capital | I13: 0 | J13: =I13/'Unit Mix'!$D$17 -> 0
B14: Electric | C14: 0.36 | E14: LTV | F14: =I5/I7 -> 0.6790031339 | H14: Mortgage Brokerage Fee | I14: 0 | J14: =I14/'Unit Mix'!$D$17 -> 0
B15: Water | C15: 0.4 | E15: Interest-Only (Year) | F15: 0 | H15: DD Fees | I15: 0 | J15: =I15/'Unit Mix'!$D$17 -> 0
B16: Scavenger | C16: 0.3 | E16: Amortization (Year) | F16: 30 | H16: Total Uses | I16: =SUM(I10:I15) -> 3350500 | J16: =I16/'Unit Mix'!$D$17 -> 238.4697509
B17: Maintenance | C17: 0.1 | E17: Interest Rate | F17: 0.05
B18: Janitor | C18: 0.4 | H18: Return Metrics
B19: Decorating | C19: 0.42 | H19: ='Annual Cash Flow'!B58 -> Deal Level IRR | J19: ='Annual Cash Flow'!D58 -> 0.1931185497
B20: Repairs | C20: 0.35 | H20: ='Annual Cash Flow'!B59 -> Multiple | J20: ='Annual Cash Flow'!D59 -> 4.07361215
B21: Reserves | C21: 0.2 | H21: ='Annual Cash Flow'!B60 -> Net Profit | J21: ='Annual Cash Flow'!D60 -> 3305669.867
B22: Miscellaneous | C22: 0.37 | H22: ='Annual Cash Flow'!B61 -> Capital | J22: ='Annual Cash Flow'!D61 -> 1075500

Sheet Unit Mix
A1: Unit Mix
B3: Bed/Bath | C3: # Units | D3: Size (SF) | E3: Monthly Rent | F3: Annual Rent | G3: Monthly PSF
B4: Studio | C4: 4 | D4: 500 | E4: 1365 | F4: =IF(E4="","",E4*12) -> 16380 | G4: =IF(E4="","",E4/D4) -> 2.73
B5: 1Bed / 1 Bath | C5: 4 | D5: 750 | E5: 1680 | F5: =IF(E5="","",E5*12) -> 20160 | G5: =IF(E5="","",E5/D5) -> 2.24
B6: 2 Bed / 1 Bath | C6: 2 | D6: 875 | E6: 1995 | F6: 23940 | G6: 2.28
B7: 2 Bed / 2 Bath | C7: 2 | D7: 1050 | E7: 2100 | F7: 25200 | G7: 2
B8: 3 Bed / 2 Bath | C8: 4 | D8: 1300 | E8: 2415 | F8: 28980 | G8: 1.857692308
F11: =IF(E11="","",E11*12) ->  | G11: =IF(E11="","",E11/D11) -> 
B17: Total | D17: =SUMPRODUCT(C4:C16,D4:D16) -> 14050 | E17: =SUMPRODUCT(E4:E16,C4:C16) -> 30030 | F17: =SUMPRODUCT(F4:F16,C4:C16) -> 360360 | G17: =E17/D17 -> 2.137366548

Sheet Annual Cash Flow
A1: Annual Cash Flow
B3: Year | C3: 0 | D3: =C3+1 -> 1 | E3: =D3+1 -> 2 | F3: 3 | G3: 4 | H3: 5 | I3: 6 | J3: 7 | K3: 8 | L3: 9 | M3: 10 | N3: 11
B4: Gross Potential Revenue | D4: ='Unit Mix'!F17 -> 360360 | E4: =D4*(1+Assumptions!$F$4) -> 371170.8 | F4: =E4*(1+Assumptions!$F$4) -> 382305.924 | G4: =F4*(1+Assumptions!$F$4) -> 393775.1017 | H4: =G4*(1+Assumptions!$F$4) -> 405588.3548 | I4: =H4*(1+Assumptions!$F$4) -> 417756.0054 | J4: =I4*(1+Assumptions!$F$4) -> 430288.6856 | K4: =J4*(1+Assumptions!$F$4) -> 443197.3461 | L4: =K4*(1+Assumptions!$F$4) -> 456493.2665 | M4: =L4*(1+Assumptions!$F$4) -> 470188.0645 | N4: =M4*(1+Assumptions!$F$4) -> 484293.7065
A5: =Assumptions!C4 -> 0.02 | B5: Less: Loss to Lease | D5: =-D$4*$A5 -> -7207.2 | E5: =-E$4*$A5 -> -7423.416 | F5: -7646.11848 | G5: -7875.502034 | H5: -8111.767095 | I5: -8355.120108 | J5: -8605.773712 | K5: -8863.946923 | L5: -9129.865331 | M5: -9403.76129 | N5: -9685.874129
A6: =Assumptions!C5 -> 0.08 | B6: Less: Vacancy | D6: =-D$4*$A6 -> -28828.8 | E6: -29693.664 | F6: -30584.47392 | G6: -31502.00814 | H6: -32447.06838 | I6: -33420.48043 | J6: -34423.09485 | K6: -35455.78769 | L6: -36519.46132 | M6: -37615.04516 | N6: -38743.49652
A7: =Assumptions!C6 -> 0.01 | B7: Less: Collection Loss | D7: -3603.6 | E7: -3711.708 | F7: -3823.05924 | G7: -3937.751017 | H7: -4055.883548 | I7: -4177.560054 | J7: -4302.886856 | K7: -4431.973461 | L7: -4564.932665 | M7: -4701.880645 | N7: -4842.937065
A8: =Assumptions!C7 -> 0.01 | B8: Less: Concessions | D8: -3603.6 | E8: -3711.708 | F8: -3823.05924 | G8: -3937.751017 | H8: -4055.883548 | I8: -4177.560054 | J8: -4302.886856 | K8: -4431.973461 | L8: -4564.932665 | M8: -4701.880645 | N8: -4842.937065
B9: Net Scheduled Base Rental Revenue | D9: =SUM(D4:D8) -> 317116.8 | E9: =SUM(E4:E8) -> 326630.304 | F9: 336429.2131 | G9: 346522.0895 | H9: 356917.7522 | I9: 367625.2848 | J9: 378654.0433 | K9: 390013.6646 | L9: 401714.0745 | M9: 413765.4968 | N9: 426178.4617
B11: Other Income | D11: 15000 | E11: 15000 | F11: 15000 | G11: 15000 | H11: 15000 | I11: 15000 | J11: 15000 | K11: 15000 | L11: 15000 | M11: 15000 | N11: 15000
B12: Expense Reimbursement | D12: 1000 | E12: 1000 | F12: 1000 | G12: 1000 | H12: 1000 | I12: 1000 | J12: 1000 | K12: 1000 | L12: 1000 | M12: 1000 | N12: 1000
B14: Effective Gross Revenue | D14: =D9+D11+D12 -> 333116.8 | E14: =E9+E11+E12 -> 342630.304 | F14: 352429.2131 | G14: 362522.0895 | H14: 372917.7522 | I14: 383625.2848 | J14: 394654.0433 | K14: 406013.6646 | L14: 417714.0745 | M14: 429765.4968 | N14: 442178.4617
B16: EXPENSES
B17: =Assumptions!B11 -> Taxes | D17: =-Assumptions!$C11*'Unit Mix'!$D$17 -> -14050 | E17: =D17*(1+Assumptions!$F$5) -> -14471.5 | F17: =E17*(1+Assumptions!$F$5) -> -14905.645 | G17: =F17*(1+Assumptions!$F$5) -> -15352.81435 | H17: =G17*(1+Assumptions!$F$5) -> -15813.39878 | I17: =H17*(1+Assumptions!$F$5) -> -16287.80074 | J17: =I17*(1+Assumptions!$F$5) -> -16776.43477 | K17: =J17*(1+Assumptions!$F$5) -> -17279.72781 | L17: =K17*(1+Assumptions!$F$5) -> -17798.11964 | M17: =L17*(1+Assumptions!$F$5) -> -18332.06323 | N17: =M17*(1+Assumptions!$F$5) -> -18882.02513
B18: =Assumptions!B12 -> Insurance | D18: =-Assumptions!$C12*'Unit Mix'!$D$17 -> -4917.5 | E18: =D18*(1+Assumptions!$F$5) -> -5065.025 | F18: =E18*(1+Assumptions!$F$5) -> -5216.97575 | G18: =F18*(1+Assumptions!$F$5) -> -5373.485023 | H18: =G18*(1+Assumptions!$F$5) -> -5534.689573 | I18: =H18*(1+Assumptions!$F$5) -> -5700.73026 | J18: =I18*(1+Assumptions!$F$5) -> -5871.752168 | K18: =J18*(1+Assumptions!$F$5) -> -6047.904733 | L18: =K18*(1+Assumptions!$F$5) -> -6229.341875 | M18: =L18*(1+Assumptions!$F$5) -> -6416.222131 | N18: =M18*(1+Assumptions!$F$5) -> -6608.708795
B19: =Assumptions!B13 -> Gas | D19: =-Assumptions!$C13*'Unit Mix'!$D$17 -> -4917.5 | E19: =D19*(1+Assumptions!$F$5) -> -5065.025 | F19: =E19*(1+Assumptions!$F$5) -> -5216.97575 | G19: =F19*(1+Assumptions!$F$5) -> -5373.485023 | H19: =G19*(1+Assumptions!$F$5) -> -5534.689573 | I19: =H19*(1+Assumptions!$F$5) -> -5700.73026 | J19: =I19*(1+Assumptions!$F$5) -> -5871.752168 | K19: =J19*(1+Assumptions!$F$5) -> -6047.904733 | L19: =K19*(1+Assumptions!$F$5) -> -6229.341875 | M19: =L19*(1+Assumptions!$F$5) -> -6416.222131 | N19: =M19*(1+Assumptions!$F$5) -> -6608.708795
B20: =Assumptions!B14 -> Electric | D20: =-Assumptions!$C14*'Unit Mix'!$D$17 -> -5058 | E20: =D20*(1+Assumptions!$F$5) -> -5209.74 | F20: =E20*(1+Assumptions!$F$5) -> -5366.0322 | G20: =F20*(1+Assumptions!$F$5) -> -5527.013166 | H20: =G20*(1+Assumptions!$F$5) -> -5692.823561 | I20: =H20*(1+Assumptions!$F$5) -> -5863.608268 | J20: =I20*(1+Assumptions!$F$5) -> -6039.516516 | K20: =J20*(1+Assumptions!$F$5) -> -6220.702011 | L20: =K20*(1+Assumptions!$F$5) -> -6407.323072 | M20: =L20*(1+Assumptions!$F$5) -> -6599.542764 | N20: =M20*(1+Assumptions!$F$5) -> -6797.529047
B21: =Assumptions!B15 -> Water | D21: =-Assumptions!$C15*'Unit Mix'!$D$17 -> -5620 | E21: =D21*(1+Assumptions!$F$5) -> -5788.6 | F21: =E21*(1+Assumptions!$F$5) -> -5962.258 | G21: =F21*(1+Assumptions!$F$5) -> -6141.12574 | H21: =G21*(1+Assumptions!$F$5) -> -6325.359512 | I21: =H21*(1+Assumptions!$F$5) -> -6515.120298 | J21: =I21*(1+Assumptions!$F$5) -> -6710.573906 | K21: =J21*(1+Assumptions!$F$5) -> -6911.891124 | L21: =K21*(1+Assumptions!$F$5) -> -7119.247857 | M21: =L21*(1+Assumptions!$F$5) -> -7332.825293 | N21: =M21*(1+Assumptions!$F$5) -> -7552.810052
B22: =Assumptions!B16 -> Scavenger | D22: =-Assumptions!$C16*'Unit Mix'!$D$17 -> -4215 | E22: =D22*(1+Assumptions!$F$5) -> -4341.45 | F22: =E22*(1+Assumptions!$F$5) -> -4471.6935 | G22: =F22*(1+Assumptions!$F$5) -> -4605.844305 | H22: =G22*(1+Assumptions!$F$5) -> -4744.019634 | I22: =H22*(1+Assumptions!$F$5) -> -4886.340223 | J22: =I22*(1+Assumptions!$F$5) -> -5032.93043 | K22: =J22*(1+Assumptions!$F$5) -> -5183.918343 | L22: =K22*(1+Assumptions!$F$5) -> -5339.435893 | M22: =L22*(1+Assumptions!$F$5) -> -5499.61897 | N22: =M22*(1+Assumptions!$F$5) -> -5664.607539
B23: =Assumptions!B17 -> Maintenance | D23: =-Assumptions!$C17*'Unit Mix'!$D$17 -> -1405 | E23: =D23*(1+Assumptions!$F$5) -> -1447.15 | F23: =E23*(1+Assumptions!$F$5) -> -1490.5645 | G23: =F23*(1+Assumptions!$F$5) -> -1535.281435 | H23: =G23*(1+Assumptions!$F$5) -> -1581.339878 | I23: =H23*(1+Assumptions!$F$5) -> -1628.780074 | J23: =I23*(1+Assumptions!$F$5) -> -1677.643477 | K23: =J23*(1+Assumptions!$F$5) -> -1727.972781 | L23: =K23*(1+Assumptions!$F$5) -> -1779.811964 | M23: =L23*(1+Assumptions!$F$5) -> -1833.206323 | N23: =M23*(1+Assumptions!$F$5) -> -1888.202513
B24: =Assumptions!B18 -> Janitor | D24: =-Assumptions!$C18*'Unit Mix'!$D$17 -> -5620 | E24: =D24*(1+Assumptions!$F$5) -> -5788.6 | F24: =E24*(1+Assumptions!$F$5) -> -5962.258 | G24: =F24*(1+Assumptions!$F$5) -> -6141.12574 | H24: =G24*(1+Assumptions!$F$5) -> -6325.359512 | I24: =H24*(1+Assumptions!$F$5) -> -6515.120298 | J24: =I24*(1+Assumptions!$F$5) -> -6710.573906 | K24: =J24*(1+Assumptions!$F$5) -> -6911.891124 | L24: =K24*(1+Assumptions!$F$5) -> -7119.247857 | M24: =L24*(1+Assumptions!$F$5) -> -7332.825293 | N24: =M24*(1+Assumptions!$F$5) -> -7552.810052
B25: =Assumptions!B19 -> Decorating | D25: =-Assumptions!$C19*'Unit Mix'!$D$17 -> -5901 | E25: =D25*(1+Assumptions!$F$5) -> -6078.03 | F25: =E25*(1+Assumptions!$F$5) -> -6260.3709 | G25: =F25*(1+Assumptions!$F$5) -> -6448.182027 | H25: =G25*(1+Assumptions!$F$5) -> -6641.627488 | I25: =H25*(1+Assumptions!$F$5) -> -6840.876312 | J25: =I25*(1+Assumptions!$F$5) -> -7046.102602 | K25: =J25*(1+Assumptions!$F$5) -> -7257.48568 | L25: =K25*(1+Assumptions!$F$5) -> -7475.21025 | M25: =L25*(1+Assumptions!$F$5) -> -7699.466558 | N25: =M25*(1+Assumptions!$F$5) -> -7930.450555
B26: =Assumptions!B20 -> Repairs | D26: =-Assumptions!$C20*'Unit Mix'!$D$17 -> -4917.5 | E26: =D26*(1+Assumptions!$F$5) -> -5065.025 | F26: =E26*(1+Assumptions!$F$5) -> -5216.97575 | G26: =F26*(1+Assumptions!$F$5) -> -5373.485023 | H26: =G26*(1+Assumptions!$F$5) -> -5534.689573 | I26: =H26*(1+Assumptions!$F$5) -> -5700.73026 | J26: =I26*(1+Assumptions!$F$5) -> -5871.752168 | K26: =J26*(1+Assumptions!$F$5) -> -6047.904733 | L26: =K26*(1+Assumptions!$F$5) -> -6229.341875 | M26: =L26*(1+Assumptions!$F$5) -> -6416.222131 | N26: =M26*(1+Assumptions!$F$5) -> -6608.708795
B27: =Assumptions!B21 -> Reserves | D27: =-Assumptions!$C21*'Unit Mix'!$D$17 -> -2810 | E27: =D27*(1+Assumptions!$F$5) -> -2894.3 | F27: =E27*(1+Assumptions!$F$5) -> -2981.129 | G27: =F27*(1+Assumptions!$F$5) -> -3070.56287 | H27: =G27*(1+Assumptions!$F$5) -> -3162.679756 | I27: =H27*(1+Assumptions!$F$5) -> -3257.560149 | J27: =I27*(1+Assumptions!$F$5) -> -3355.286953 | K27: =J27*(1+Assumptions!$F$5) -> -3455.945562 | L27: =K27*(1+Assumptions!$F$5) -> -3559.623929 | M27: =L27*(1+Assumptions!$F$5) -> -3666.412647 | N27: =M27*(1+Assumptions!$F$5) -> -3776.405026
B28: =Assumptions!B22 -> Miscellaneous | D28: =-Assumptions!$C22*'Unit Mix'!$D$17 -> -5198.5 | E28: =D28*(1+Assumptions!$F$5) -> -5354.455 | F28: =E28*(1+Assumptions!$F$5) -> -5515.08865 | G28: =F28*(1+Assumptions!$F$5) -> -5680.541309 | H28: =G28*(1+Assumptions!$F$5) -> -5850.957549 | I28: =H28*(1+Assumptions!$F$5) -> -6026.486275 | J28: =I28*(1+Assumptions!$F$5) -> -6207.280864 | K28: =J28*(1+Assumptions!$F$5) -> -6393.499289 | L28: =K28*(1+Assumptions!$F$5) -> -6585.304268 | M28: =L28*(1+Assumptions!$F$5) -> -6782.863396 | N28: =M28*(1+Assumptions!$F$5) -> -6986.349298
D29: =SUM(D17:D28) -> -64630 | E29: =SUM(E17:E28) -> -66568.9 | F29: -68565.967 | G29: -70622.94601 | H29: -72741.63439 | I29: -74923.88342 | J29: -77171.59992 | K29: -79486.74792 | L29: -81871.35036 | M29: -84327.49087 | N29: -86857.3156
B31: Other Expenses | D31: -1000 | E31: -1000 | F31: -1000 | G31: -1000 | H31: -1000 | I31: -1000 | J31: -1000 | K31: -1000 | L31: -1000 | M31: -1000 | N31: -1000
A32: =Assumptions!F9 -> 0.03 | B32: Management Fee | D32: =-D14*$A$32 -> -9993.504 | E32: =-E14*$A$32 -> -10278.90912 | F32: -10572.87639 | G32: -10875.66269 | H32: -11187.53257 | I32: -11508.75854 | J32: -11839.6213 | K32: -12180.40994 | L32: -12531.42224 | M32: -12892.9649 | N32: -13265.35385
D33: =SUM(D31:D32) -> -10993.504 | E33: =SUM(E31:E32) -> -11278.90912 | F33: -11572.87639 | G33: -11875.66269 | H33: -12187.53257 | I33: -12508.75854 | J33: -12839.6213 | K33: -13180.40994 | L33: -13531.42224 | M33: -13892.9649 | N33: -14265.35385
B35: Total Expenses | D35: =D29+D33 -> -75623.504 | E35: =E29+E33 -> -77847.80912 | F35: -80138.84339 | G35: -82498.6087 | H35: -84929.16696 | I35: -87432.64196 | J35: -90011.22122 | K35: -92667.15786 | L35: -95402.7726 | M35: -98220.45577 | N35: -101122.6694
B37: Net Operating Income | D37: =D14+D35 -> 257493.296 | E37: =E14+E35 -> 264782.4949 | F37: 272290.3697 | G37: 280023.4808 | H37: 287988.5852 | I37: 296192.6428 | J37: 304642.8221 | K37: 313346.5067 | L37: 322311.3019 | M37: 331545.041 | N37: 341055.7922
B39: LOAN:
B40: Total Begining Loan Balance | C40: 0 | D40: =C46 -> 2275000 | E40: =D46 -> 2240757.985 | F40: 2204803.87 | G40: 2167052.048 | H40: 2127412.636 | I40: 2085791.253 | J40: 2042088.801 | K40: 1996201.226 | L40: 1948019.272 | M40: 1897428.221 | N40: 0
B41: Addition | C41: =Assumptions!I5 -> 2275000
B42: Principal | D42: =D44-D43 -> -34242.01481 | E42: =E44-E43 -> -35954.11555 | F42: -37751.82133 | G42: -39639.41239 | H42: -41621.38301 | I42: -43702.45216 | J42: -45887.57477 | K42: -48181.95351 | L42: -50591.05118 | M42: -53120.60374 | N42: 0
B43: Interests | D43: =-D40*Assumptions!$F$17 -> -113750 | E43: =-E40*Assumptions!$F$17 -> -112037.8993 | F43: =-F40*Assumptions!$F$17 -> -110240.1935 | G43: =-G40*Assumptions!$F$17 -> -108352.6024 | H43: =-H40*Assumptions!$F$17 -> -106370.6318 | I43: =-I40*Assumptions!$F$17 -> -104289.5626 | J43: =-J40*Assumptions!$F$17 -> -102104.44 | K43: =-K40*Assumptions!$F$17 -> -99810.0613 | L43: =-L40*Assumptions!$F$17 -> -97400.96362 | M43: =-M40*Assumptions!$F$17 -> -94871.41106 | N43: =-N40*Assumptions!$F$17 -> 0
B44: Debt Service | D44: =IF(D3>Assumptions!$F$8,0,IF(D3<=Assumptions!$F$15,-D40*Assumptions!$F$17,PMT(Assumptions!$F$17,Assumptions!$F$16,Assumptions!$I$5))) -> -147992.0148 | E44: =IF(E3>Assumptions!$F$8,0,IF(E3<=Assumptions!$F$15,-E40*Assumptions!$F$17,PMT(Assumptions!$F$17,Assumptions!$F$16,Assumptions!$I$5))) -> -147992.0148 | F44: =IF(F3>Assumptions!$F$8,0,IF(F3<=Assumptions!$F$15,-F40*Assumptions!$F$17,PMT(Assumptions!$F$17,Assumptions!$F$16,Assumptions!$I$5))) -> -147992.0148 | G44: =IF(G3>Assumptions!$F$8,0,IF(G3<=Assumptions!$F$15,-G40*Assumptions!$F$17,PMT(Assumptions!$F$17,Assumptions!$F$16,Assumptions!$I$5))) -> -147992.0148 | H44: =IF(H3>Assumptions!$F$8,0,IF(H3<=Assumptions!$F$15,-H40*Assumptions!$F$17,PMT(Assumptions!$F$17,Assumptions!$F$16,Assumptions!$I$5))) -> -147992.0148 | I44: =IF(I3>Assumptions!$F$8,0,IF(I3<=Assumptions!$F$15,-I40*Assumptions!$F$17,PMT(Assumptions!$F$17,Assumptions!$F$16,Assumptions!$I$5))) -> -147992.0148 | J44: =IF(J3>Assumptions!$F$8,0,IF(J3<=Assumptions!$F$15,-J40*Assumptions!$F$17,PMT(Assumptions!$F$17,Assumptions!$F$16,Assumptions!$I$5))) -> -147992.0148 | K44: =IF(K3>Assumptions!$F$8,0,IF(K3<=Assumptions!$F$15,-K40*Assumptions!$F$17,PMT(Assumptions!$F$17,Assumptions!$F$16,Assumptions!$I$5))) -> -147992.0148 | L44: =IF(L3>Assumptions!$F$8,0,IF(L3<=Assumptions!$F$15,-L40*Assumptions!$F$17,PMT(Assumptions!$F$17,Assumptions!$F$16,Assumptions!$I$5))) -> -147992.0148 | M44: =IF(M3>Assumptions!$F$8,0,IF(M3<=Assumptions!$F$15,-M40*Assumptions!$F$17,PMT(Assumptions!$F$17,Assumptions!$F$16,Assumptions!$I$5))) -> -147992.0148 | N44: =IF(N3>Assumptions!$F$8,0,IF(N3<=Assumptions!$F$15,-N40*Assumptions!$F$17,PMT(Assumptions!$F$17,Assumptions!$F$16,Assumptions!$I$5))) -> 0
B45: Payoff | D45: =IF(D3=Assumptions!$F$8,-(D40+D42),0) -> 0 | E45: =IF(E3=Assumptions!$F$8,-(E40+E42),0) -> 0 | F45: =IF(F3=Assumptions!$F$8,-(F40+F42),0) -> 0 | G45: =IF(G3=Assumptions!$F$8,-(G40+G42),0) -> 0 | H45: =IF(H3=Assumptions!$F$8,-(H40+H42),0) -> 0 | I45: =IF(I3=Assumptions!$F$8,-(I40+I42),0) -> 0 | J45: =IF(J3=Assumptions!$F$8,-(J40+J42),0) -> 0 | K45: =IF(K3=Assumptions!$F$8,-(K40+K42),0) -> 0 | L45: =IF(L3=Assumptions!$F$8,-(L40+L42),0) -> 0 | M45: =IF(M3=Assumptions!$F$8,-(M40+M42),0) -> -1844307.618
B46: Total Ending Loan Balance | C46: =C40+C41+C42+C45 -> 2275000 | D46: =D40+D41+D42+D45 -> 2240757.985 | E46: 2204803.87 | F46: 2167052.048 | G46: 2127412.636 | H46: 2085791.253 | I46: =I40+I41+I42+I45 -> 2042088.801 | J46: =J40+J41+J42+J45 -> 1996201.226 | K46: =K40+K41+K42+K45 -> 1948019.272 | L46: =L40+L41+L42+L45 -> 1897428.221 | M46: =M40+M41+M42+M45 -> 0 | N46: =N40+N41+N42+N45 -> 0
B48: Levered Cash Flow | D48: =D37+D41+D44 -> 109501.2812 | E48: =E37+E41+E44 -> 116790.4801 | F48: 124298.3549 | G48: 132031.466 | H48: 139996.5704 | I48: 148200.628 | J48: 156650.8073 | K48: 165354.4919 | L48: 174319.2871 | M48: 183553.0262 | N48: 341055.7922
B50: Sale | D50: =IF(D3=Assumptions!$F$8,E37/Assumptions!$F$7,0) -> 0 | E50: =IF(E3=Assumptions!$F$8,F37/Assumptions!$F$7,0) -> 0 | F50: =IF(F3=Assumptions!$F$8,G37/Assumptions!$F$7,0) -> 0 | G50: =IF(G3=Assumptions!$F$8,H37/Assumptions!$F$7,0) -> 0 | H50: =IF(H3=Assumptions!$F$8,I37/Assumptions!$F$7,0) -> 0 | I50: =IF(I3=Assumptions!$F$8,J37/Assumptions!$F$7,0) -> 0 | J50: =IF(J3=Assumptions!$F$8,K37/Assumptions!$F$7,0) -> 0 | K50: =IF(K3=Assumptions!$F$8,L37/Assumptions!$F$7,0) -> 0 | L50: =IF(L3=Assumptions!$F$8,M37/Assumptions!$F$7,0) -> 0 | M50: =IF(M3=Assumptions!$F$8,N37/Assumptions!$F$7,0) -> 4872225.603
B51: Costs of Sale | D51: =-D50*Assumptions!$F$10 -> 0 | E51: =-E50*Assumptions!$F$10 -> 0 | F51: =-F50*Assumptions!$F$10 -> 0 | G51: =-G50*Assumptions!$F$10 -> 0 | H51: =-H50*Assumptions!$F$10 -> 0 | I51: =-I50*Assumptions!$F$10 -> 0 | J51: =-J50*Assumptions!$F$10 -> 0 | K51: =-K50*Assumptions!$F$10 -> 0 | L51: =-L50*Assumptions!$F$10 -> 0 | M51: =-M50*Assumptions!$F$10 -> -97444.51207
B52: Debt Repayment | D52: =D45 -> 0 | E52: =E45 -> 0 | F52: 0 | G52: 0 | H52: 0 | I52: 0 | J52: 0 | K52: 0 | L52: 0 | M52: -1844307.618
B53: Total Cash Flow from Sale | D53: =SUM(D50:D52) -> 0 | E53: =SUM(E50:E52) -> 0 | F53: 0 | G53: 0 | H53: 0 | I53: 0 | J53: 0 | K53: 0 | L53: 0 | M53: 2930473.474
B55: Total Cash Flow | C55: =-Assumptions!I6 -> -1075500 | D55: =IF(D3<=Assumptions!$F$8,D48+D53,0) -> 109501.2812 | E55: =IF(E3<=Assumptions!$F$8,E48+E53,0) -> 116790.4801 | F55: =IF(F3<=Assumptions!$F$8,F48+F53,0) -> 124298.3549 | G55: =IF(G3<=Assumptions!$F$8,G48+G53,0) -> 132031.466 | H55: =IF(H3<=Assumptions!$F$8,H48+H53,0) -> 139996.5704 | I55: =IF(I3<=Assumptions!$F$8,I48+I53,0) -> 148200.628 | J55: =IF(J3<=Assumptions!$F$8,J48+J53,0) -> 156650.8073 | K55: =IF(K3<=Assumptions!$F$8,K48+K53,0) -> 165354.4919 | L55: =IF(L3<=Assumptions!$F$8,L48+L53,0) -> 174319.2871 | M55: =IF(M3<=Assumptions!$F$8,M48+M53,0) -> 3114026.5
B58: Deal Level IRR | D58: =IRR(C55:M55) -> 0.1931185497
B59: Multiple | D59: =-SUM(D55:M55)/C55 -> 4.07361215
B60: Net Profit | D60: =SUM(C55:M55) -> 3305669.867
B61: Capital | D61: =-C55 -> 1075500
